fUST/lending_fUST_20240502
["ID","MTS","AMOUNT","RATE_DAILY","PERIOD"]
[325215958,1714593042838,-2239.08,0.00052876,2]
[325215959,1714593042848,-500.0,0.00052876,120]
[325215960,1714593042857,-1245.68,0.00052876,120]
[325215961,1714593042866,-500.0,0.00052876,120]
[325215962,1714593042875,-500.0,0.00052876,120]
[325215963,1714593042884,-208.3697921,0.00052876,120]
[325215964,1714593042894,-580.21,0.00052876,120]
[325215965,1714593042903,-500.0,0.00052876,120]
[325215966,1714593042912,-1918.13,0.00052876,120]
[325215967,1714593042922,-500.0,0.00052876,120]
[325215968,1714593042931,-500.0,0.00052876,120]
[325215969,1714593042941,-520.71197771,0.00052876,120]
[325215970,1714593042950,-500.0,0.00052876,120]
[325215971,1714593042959,-585.82,0.00052876,120]
[325215972,1714593042968,-500.0,0.00052876,120]
[325215973,1714593042978,-500.0,0.00052876,120]
[325215974,1714593042994,-3647.57,0.00052876,120]
[325215975,1714593043003,-502.99311205,0.00052876,120]
[325215976,1714593043012,-500.0,0.00052876,120]
[325215977,1714593043022,-1066.85,0.00052876,120]
[325215978,1714593043034,-500.0,0.00052876,120]
[325215979,1714593043043,-500.0,0.00052876,120]
[325215980,1714593043058,-548.41,0.00052876,120]
[325215981,1714593043067,-500.0,0.00052876,120]
[325215982,1714593043078,-588.11334972,0.00052876,120]
[325215983,1714593043087,-500.0,0.00052876,120]
[325215984,1714593043096,-685.66,0.00052876,120]
[325215985,1714593043105,-500.0,0.00052876,120]
[325215987,1714593043115,-500.0,0.00052876,120]
[325215989,1714593043124,-539.18071773,0.00052876,120]
[325215991,1714593043134,-500.0,0.00052876,120]
[325215993,1714593043144,-790.05,0.00052876,120]
[325215994,1714593043154,-646.75,0.00052876,120]
[325215995,1714593043164,-500.0,0.00052876,120]
[325215996,1714593043174,-500.0,0.00052876,120]
[325215997,1714593043184,-500.0,0.00052876,120]
[325215998,1714593043194,-500.0,0.00052876,120]
[325215999,1714593043203,-512.6,0.00052876,120]
[325216000,1714593043212,-500.0,0.00052876,120]
[325216001,1714593043222,-500.0,0.00052876,120]
[325216002,1714593043230,-500.0,0.00052876,120]
[325216003,1714593043240,-500.0,0.00052876,120]
[325216004,1714593043250,-300.0,0.00052876,2]
[325216005,1714593043260,-623.92,0.00052876,120]
[325216006,1714593043269,-505.85986609,0.00052876,120]
[325216007,1714593043279,-769.53,0.00052876,120]
[325216008,1714593043288,-500.0,0.00052876,30]
[325216009,1714593043297,-500.0,0.00052876,120]
[325216010,1714593043310,-500.0,0.00052876,120]
[325216011,1714593043319,-500.0,0.00052876,120]
[325216012,1714593043329,-500.0,0.00052876,120]
[325216013,1714593043338,-501.07653478,0.00052876,120]
[325216014,1714593043347,-502.92570621,0.00052876,120]
[325216015,1714593043355,-500.0,0.00052876,120]
[325216016,1714593043364,-500.0,0.00052876,120]
[325216017,1714593043374,-1300.37,0.00052876,120]
[325216018,1714593043383,-500.0,0.00052876,120]
[325216019,1714593043392,-1083.45,0.00052876,120]
[325216020,1714593043402,-500.0,0.00052876,120]
[325216021,1714593043411,-511.17,0.00052876,120]
[325216022,1714593043420,-500.28759022,0.00052876,120]
[325216023,1714593043429,-500.0,0.00052876,120]
[325216024,1714593043439,-515.08,0.00052876,120]
[325216025,1714593043449,-500.0,0.00052876,120]
[325216026,1714593043458,-500.0,0.00052876,120]
[325216027,1714593043466,-500.0,0.00052876,120]
[325216028,1714593043475,-15563.73,0.00052876,120]
[325216029,1714593043484,-500.0,0.00052876,120]
[325216030,1714593043494,-500.0,0.00052876,120]
[325216031,1714593043503,-4919.23,0.00052876,120]
[325216032,1714593043512,-592.33,0.00052876,120]
[325216033,1714593043521,-500.0,0.00052876,120]
[325216034,1714593043531,-500.0,0.00052876,120]
[325216035,1714593043540,-500.0,0.00052876,120]
[325216036,1714593043550,-500.0,0.00052876,120]
[325216038,1714593043559,-500.0,0.00052876,120]
[325216040,1714593043569,-3268.66,0.00052876,120]
[325216041,1714593043577,-500.0,0.00052876,120]
[325216043,1714593043587,-500.0,0.00052876,120]
[325216045,1714593043596,-500.0,0.00052876,120]
[325216046,1714593043605,-500.0,0.00052876,120]
[325216047,1714593043614,-500.0,0.00052876,120]
[325216048,1714593043624,-500.0,0.00052876,120]
[325216049,1714593043634,-500.0,0.00052876,120]
[325216050,1714593043643,-500.0,0.00052876,120]
[325216051,1714593043652,-500.0,0.00052876,120]
[325216052,1714593043661,-500.0,0.00052876,120]
[325216053,1714593043670,-500.0,0.00052876,120]
[325216054,1714593043679,-1592.82,0.00052876,30]
[325216055,1714593043688,-500.0,0.00052876,120]
[325216056,1714593043697,-308.138065,0.00052876,120]
[325216057,1714593043707,-500.0,0.00052876,120]
[325216058,1714593043715,-500.0,0.00052876,120]
[325216059,1714593043725,-500.0,0.00052876,120]
[325216060,1714593043734,-500.0,0.00052876,120]
[325216061,1714593043743,-500.0,0.00052876,120]
[325216062,1714593043753,-500.0,0.00052876,120]
[325216063,1714593043762,-500.0,0.00052876,120]
[325216064,1714593043771,-500.0,0.00052876,120]
[325216065,1714593043780,-873.13,0.00052876,120]
[325216066,1714593043789,-300.0,0.00052876,7]
[325216067,1714593043800,-154.79876161,0.00052876,120]
[325216068,1714593043809,-1224.42,0.00052876,120]
[325216069,1714593043818,-2416.17,0.00052876,120]
[325216070,1714593043828,-1202.11,0.00052876,120]
[325216071,1714593043837,-500.0,0.00052876,120]
[325216072,1714593043846,-361.35558718,0.00052876,120]
[325216073,1714593043856,-500.0,0.00052876,120]
[325216074,1714593043865,-500.0,0.00052876,120]
[325216075,1714593043875,-1021.63,0.00052876,120]
[325216076,1714593043883,-500.0,0.00052876,120]
[325216077,1714593043893,-500.0,0.00052876,120]
[325216078,1714593043903,-787.78,0.00052876,120]
[325216079,1714593043912,-2993.93,0.00052876,120]
[325216080,1714593043921,-500.0,0.00052876,120]
[325216081,1714593043930,-500.0,0.00052876,120]
[325216082,1714593043939,-500.0,0.00052876,120]
[325216083,1714593043948,-500.0,0.00052876,120]
[325216084,1714593043957,-500.0,0.00052876,120]
[325216085,1714593043967,-1034.59,0.00052876,120]
[325216086,1714593043976,-500.0,0.00052876,120]
[325216087,1714593043986,-500.0,0.00052876,120]
[325216088,1714593043995,-500.0,0.00052876,120]
[325216089,1714593044004,-500.0,0.00052876,120]
[325216090,1714593044014,-817.09,0.00052876,120]
[325216091,1714593044028,-500.0,0.00052876,120]
[325216092,1714593044038,-500.0,0.00052876,120]
[325216093,1714593044051,-500.0,0.00052876,120]
[325216094,1714593044064,-500.0,0.00052876,120]
[325216095,1714593044073,-500.0,0.00052876,120]
[325216096,1714593044082,-500.0,0.00052876,120]
[325216097,1714593044093,-500.0,0.00052876,120]
[325216098,1714593044104,-500.0,0.00052876,120]
[325216099,1714593044114,-505.30029406,0.00052876,120]
[325216100,1714593044124,-500.0,0.00052876,120]
[325216101,1714593044133,-500.0,0.00052876,120]
[325216102,1714593044142,-1098.49,0.00052876,120]
[325216103,1714593044152,-500.0,0.00052876,120]
[325216104,1714593044161,-500.0,0.00052876,3]
[325216105,1714593044170,-500.0,0.00052876,120]
[325216106,1714593044179,-500.0,0.00052876,120]
[325216107,1714593044189,-500.0,0.00052876,120]
[325216108,1714593044198,-500.0,0.00052876,120]
[325216109,1714593044208,-500.0,0.00052876,120]
[325216110,1714593044217,-2274.52,0.00052876,120]
[325216111,1714593044227,-500.0,0.00052876,120]
[325216112,1714593044237,-500.0,0.00052876,120]
[325216113,1714593044247,-500.0,0.00052876,120]
[325216114,1714593044256,-505.94488032,0.00052876,120]
[325216115,1714593044266,-500.0,0.00052876,120]
[325216116,1714593044275,-449.72696002,0.00052876,120]
[325216117,1714593044285,-527.67,0.00052876,120]
[325216118,1714593044294,-500.0,0.00052876,120]
[325216119,1714593044311,-2156.03,0.00052876,120]
[325216120,1714593044320,-500.0,0.00052876,120]
[325216121,1714593044329,-545.43,0.00052876,120]
[325216122,1714593044338,-500.0,0.00052876,120]
[325216123,1714593044348,-749.02,0.00052876,120]
[325216124,1714593044358,-842.19,0.00052876,120]
[325216125,1714593044367,-669.57,0.00052876,120]
[325216126,1714593044377,-500.0,0.00052876,120]
[325216127,1714593044386,-500.0,0.00052876,120]
[325216128,1714593044395,-500.0,0.00052876,120]
[325216129,1714593044404,-500.54506639,0.00052876,120]
[325216130,1714593044413,-500.0,0.00052876,120]
[325216131,1714593044423,-839.77,0.00052876,120]
[325216132,1714593044432,-500.0,0.00052876,120]
[325216133,1714593044442,-500.0,0.00052876,120]
[325216134,1714593044452,-1227.58,0.00052876,120]
[325216135,1714593044462,-500.0,0.00052876,120]
[325216136,1714593044471,-612.01089784,0.00052876,120]
[325216137,1714593044481,-500.0,0.00052876,120]
[325216138,1714593044490,-1059.07,0.00052876,120]
[325216139,1714593044499,-500.0,0.00052876,120]
[325216140,1714593044508,-675.29,0.00052876,120]
[325216141,1714593044518,-151.0,0.00053233,120]
[325216142,1714593044527,-157.69024522,0.00053324,2]
[325216143,1714593044537,-164.10640459,0.00053367,2]
[325216144,1714593044546,-500.0,0.00053423,120]
[325216145,1714593044562,-500.0,0.00053423,120]
[325216146,1714593044571,-500.0,0.00053423,120]
[325216147,1714593044580,-500.0,0.00053423,120]
[325216148,1714593044589,-500.0,0.00053423,120]
[325216149,1714593044598,-500.0,0.00053423,120]
[325216150,1714593044607,-500.0,0.00053423,120]
[325216151,1714593044616,-500.0,0.00053423,120]
[325216152,1714593044625,-500.0,0.00053423,120]
[325216153,1714593044635,-500.0,0.00053423,120]
[325216154,1714593044644,-500.0,0.00053423,120]
[325216155,1714593044653,-500.0,0.00053423,120]
[325216156,1714593044662,-500.0,0.00053423,120]
[325216157,1714593044672,-1317.59,0.00053423,120]
[325216158,1714593044681,-1317.59,0.00053423,120]
[325216159,1714593044690,-1317.59,0.00053423,120]
[325216160,1714593044700,-1317.59,0.00053423,120]
[325216161,1714593044708,-1317.59,0.00053423,120]
[325216162,1714593044717,-1317.59,0.00053423,120]
[325216163,1714593044727,-500.0,0.00053424,120]
[325216164,1714593044737,-500.0,0.00053424,120]
[325216165,1714593044746,-500.0,0.00053424,120]
[325216166,1714593044755,-500.0,0.00053424,120]
[325216167,1714593044764,-799.19,0.00053424,120]
[325216168,1714593044773,-319.84419381,0.00053424,120]
[325216169,1714593044783,-500.0,0.00053424,120]
[325216170,1714593044791,-500.0,0.00053424,120]
[325216171,1714593044804,-500.0,0.00053424,120]
[325216172,1714593044813,-500.0,0.00053424,120]
[325216173,1714593044823,-500.0,0.00053424,120]
[325216174,1714593044832,-500.0,0.00053424,120]
[325216175,1714593044841,-656.09,0.00053424,120]
[325216176,1714593044850,-500.0,0.00053424,120]
[325216177,1714593044860,-500.0,0.00053424,120]
[325216178,1714593044869,-500.0,0.00053424,120]
[325216179,1714593044878,-500.0,0.00053424,120]
[325216180,1714593044887,-416.0092392,0.00053424,120]
[325216181,1714593044896,-600.0,0.00053424,120]
[325216182,1714593044905,-929.28,0.00053424,120]
[325216183,1714593044914,-500.0,0.00053424,120]
[325216184,1714593044923,-500.0,0.00053424,120]
[325216185,1714593044932,-932.13,0.00053424,120]
[325216186,1714593044941,-986.16,0.00053424,120]
[325216187,1714593044950,-500.00049602,0.00053424,120]
[325216188,1714593044960,-500.0,0.00053424,120]
[325216189,1714593044969,-500.0,0.00053424,120]
[325216190,1714593044978,-500.0,0.00053424,120]
[325216191,1714593044995,-500.0,0.00053424,5]
[325216192,1714593045003,-635.3,0.00053424,120]
[325216193,1714593045012,-500.0,0.00053424,120]
[325216194,1714593045022,-500.0,0.00053424,120]
[325216195,1714593045033,-770.08,0.00053424,120]
[325216196,1714593045042,-646.37,0.00053424,120]
[325216197,1714593045054,-707.35,0.00053424,120]
[325216198,1714593045064,-500.0,0.00053424,120]
[325216199,1714593045074,-500.0,0.00053424,120]
[325216200,1714593045084,-500.0,0.00053424,120]
[325216201,1714593045095,-500.0,0.00053424,120]
[325216202,1714593045104,-606.08416733,0.00053424,120]
[325216203,1714593045113,-500.0,0.00053424,120]
[325216204,1714593045123,-500.0,0.00053424,120]
[325216205,1714593045131,-811.41,0.00053424,2]
[325216206,1714593045140,-500.0,0.00053424,120]
[325216207,1714593045149,-500.0,0.00053424,120]
[325216208,1714593045159,-500.0,0.00053424,120]
[325216209,1714593045168,-500.0,0.00053424,120]
[325216210,1714593045177,-598.21,0.00053424,120]
[325216211,1714593045186,-408.77883262,0.00053424,120]
[325216212,1714593045195,-500.0,0.00053424,120]
[325216213,1714593045205,-500.0,0.00053424,120]
[325216214,1714593045214,-501.00267243,0.00053424,120]
[325216215,1714593045224,-500.0,0.00053424,120]
[325216216,1714593045234,-500.0,0.00053424,120]
[325216217,1714593045244,-500.0,0.00053424,120]
[325216218,1714593045253,-501.29,0.00053424,120]
[325216222,1714593045419,-505.0,0.00053424,120]
[325216223,1714593045429,-230.0,0.00053424,120]
[325216224,1714593045439,-500.0,0.00053424,120]
[325216225,1714593045448,-500.0,0.00053424,120]
[325216226,1714593045457,-533.93418669,0.00053424,120]
[325216227,1714593045467,-500.0,0.00053424,120]
[325216228,1714593045476,-500.0,0.00053424,120]
[325216229,1714593045486,-685.02,0.00053424,120]
[325216230,1714593045495,-572.79337958,0.00053424,120]
[325216231,1714593045504,-500.0,0.00053424,120]
[325216232,1714593045514,-814.0,0.00053424,120]
[325216233,1714593045523,-500.0,0.00053424,120]
[325216234,1714593045532,-454.16844418,0.00053424,120]
[325216236,1714593045541,-500.0,0.00053424,120]
[325216238,1714593045553,-500.0,0.00053424,120]
[325216239,1714593045562,-500.0,0.00053424,120]
[325216240,1714593045572,-500.0,0.00053424,120]
[325216241,1714593045581,-500.0,0.00053424,120]
[325216242,1714593045590,-500.0,0.00053424,30]
[325216243,1714593045600,-500.51115075,0.00053424,120]
[325216244,1714593045609,-500.0,0.00053424,120]
[325216245,1714593045619,-500.0,0.00053424,120]
[325216247,1714593045628,-500.0,0.00053424,120]
[325216248,1714593045637,-548.15,0.00053424,120]
[325216250,1714593045647,-500.0,0.00053424,120]
[325216252,1714593045656,-627.76,0.00053424,120]
[325216253,1714593045665,-500.0,0.00053424,120]
[325216254,1714593045675,-385.46983335,0.00053424,120]
[325216256,1714593045684,-500.0,0.00053424,120]
[325216257,1714593045694,-508.21,0.00053424,120]
[325216259,1714593045703,-763.31,0.00053424,120]
[325216260,1714593045712,-500.0,0.00053424,120]
[325216261,1714593045721,-500.0,0.00053424,120]
[325216262,1714593045731,-500.0,0.00053424,120]
[325216264,1714593045740,-500.0,0.00053424,120]
[325216265,1714593045749,-573.07,0.00053424,120]
[325216267,1714593045758,-823.58,0.00053424,120]
[325216268,1714593045768,-507.32,0.00053424,120]
[325216270,1714593045777,-500.0,0.00053424,120]
[325216271,1714593045786,-500.0,0.00053424,120]
[325216272,1714593045795,-744.84,0.00053424,120]
[325216274,1714593045809,-500.0,0.00053424,120]
[325216275,1714593045817,-615.48,0.00053424,120]
[325216276,1714593045826,-500.0,0.00053424,120]
[325216277,1714593045834,-674.97,0.00053424,120]
[325216278,1714593045844,-500.0,0.00053424,120]
[325216279,1714593045854,-501.93477733,0.00053424,120]
[325216281,1714593045863,-500.0,0.00053424,120]
[325216283,1714593045872,-906.91,0.00053424,120]
[325216284,1714593045881,-779.28,0.00053424,120]
[325216285,1714593045891,-500.0,0.00053424,120]
[325216286,1714593045900,-500.0,0.00053424,120]
[325216287,1714593045910,-506.71,0.00053424,120]
[325216289,1714593045919,-500.0,0.00053424,120]
[325216290,1714593045928,-500.0,0.00053424,120]
[325216291,1714593045937,-500.0,0.00053424,120]
[325216292,1714593045946,-500.0,0.00053424,2]
[325216293,1714593045955,-500.0,0.00053424,120]
[325216294,1714593045965,-1032.99,0.00053424,120]
[325216295,1714593045974,-500.0,0.00053424,120]
[325216296,1714593045985,-500.0,0.00053424,120]
[325216297,1714593045997,-500.0,0.00053424,120]
[325216298,1714593046007,-911.15,0.00053424,120]
[325216299,1714593046016,-640.68999067,0.00053424,120]
[325216300,1714593046026,-500.0,0.00053424,120]
[325216301,1714593046038,-500.0,0.00053424,120]
[325216302,1714593046051,-500.0,0.00053424,120]
[325216303,1714593046062,-500.0,0.00053424,120]
[325216304,1714593046072,-1585.85,0.00053424,120]
[325216305,1714593046083,-500.0,0.00053424,2]
[325216306,1714593046096,-500.0,0.00053424,60]
[325216307,1714593046105,-775.81,0.00053424,120]
[325216308,1714593046114,-500.0,0.00053424,120]
[325216309,1714593046123,-594.09579856,0.00053424,120]
[325216310,1714593046133,-500.0,0.00053424,120]
[325216311,1714593046142,-758.18,0.00053424,120]
[325216312,1714593046152,-500.0,0.00053424,120]
[325216313,1714593046161,-500.0,0.00053424,120]
[325216314,1714593046170,-500.0,0.00053424,120]
[325216315,1714593046180,-500.0,0.00053424,120]
[325216316,1714593046189,-500.0,0.00053424,120]
[325216317,1714593046198,-500.0,0.00053424,120]
[325216318,1714593046207,-500.0,0.00053424,120]
[325216319,1714593046217,-500.0,0.00053424,120]
[325216320,1714593046227,-665.4,0.00053424,120]
[325216321,1714593046236,-802.71,0.00053424,120]
[325216322,1714593046245,-500.0,0.00053424,120]
[325216323,1714593046255,-500.0,0.00053424,120]
[325216324,1714593046264,-500.0,0.00053424,120]
[325216325,1714593046274,-566.46,0.00053424,120]
[325216326,1714593046283,-500.0,0.00053424,120]
[325216327,1714593046293,-944.27,0.00053424,120]
[325216328,1714593046308,-500.0,0.00053424,120]
[325216329,1714593046317,-500.0,0.00053424,120]
[325216330,1714593046326,-500.0,0.00053424,120]
[325216331,1714593046336,-500.0,0.00053424,120]
[325216332,1714593046345,-500.0,0.00053424,120]
[325216333,1714593046356,-881.93,0.00053424,120]
[325216334,1714593046366,-847.91,0.00053424,120]
[325216335,1714593046376,-500.0,0.00053424,120]
[325216336,1714593046385,-795.4,0.00053424,120]
[325216337,1714593046395,-500.0,0.00053424,120]
[325216338,1714593046404,-522.89,0.00053424,120]
[325216339,1714593046413,-500.0,0.00053424,120]
[325216340,1714593046422,-974.05,0.00053424,120]
[325216341,1714593046432,-970.75,0.00053424,120]
[325216342,1714593046442,-500.0,0.00053424,120]
[325216343,1714593046451,-538.66,0.00053424,120]
[325216344,1714593046460,-500.0,0.00053424,120]
[325216345,1714593046470,-500.0,0.00053424,120]
[325216346,1714593046480,-500.0,0.00053424,120]
[325216347,1714593046489,-737.33,0.00053424,120]
[325216348,1714593046499,-500.0,0.00053424,120]
[325216349,1714593046508,-508.75,0.00053424,120]
[325216350,1714593046518,-500.0,0.00053424,120]
[325216351,1714593046527,-500.0,0.00053424,120]
[325216352,1714593046536,-500.0,0.00053424,120]
[325216353,1714593046547,-500.0,0.00053424,120]
[325216354,1714593046558,-1437.5,0.00053424,120]
[325216355,1714593046567,-500.89811379,0.00053424,120]
[325216356,1714593046576,-500.7833895,0.00053424,120]
[325216357,1714593046585,-999.27,0.00053424,120]
[325216358,1714593046595,-500.0,0.00053424,120]
[325216359,1714593046604,-500.0,0.00053424,120]
[325216360,1714593046614,-500.0,0.00053424,120]
[325216361,1714593046623,-788.45,0.00053424,120]
[325216362,1714593046632,-500.0,0.00053424,120]
[325216363,1714593046641,-533.41,0.00053424,120]
[325216364,1714593046651,-988.92,0.00053424,120]
[325216365,1714593046660,-500.0,0.00053424,120]
[325216366,1714593046669,-500.0,0.00053424,120]
[325216367,1714593046679,-2957.5,0.00053424,120]
[325216368,1714593046688,-500.0,0.00053424,120]
[325216369,1714593046698,-500.0,0.00053424,120]
[325216370,1714593046707,-500.0,0.00053424,120]
[325216371,1714593046716,-500.0,0.00053424,120]
[325216372,1714593046726,-2973.15,0.00053424,120]
[325216373,1714593046735,-500.0,0.00053424,120]
[325216374,1714593046744,-500.0,0.00053424,120]
[325216375,1714593046753,-500.0,0.00053424,120]
[325216376,1714593046762,-500.0,0.00053424,120]
[325216377,1714593046771,-558.95,0.00053424,120]
[325216378,1714593046780,-637.17,0.00053424,120]
[325216379,1714593046790,-500.0,0.00053424,120]
[325216380,1714593046799,-500.0,0.00053424,120]
[325216381,1714593046812,-521.78,0.00053424,120]
[325216382,1714593046822,-500.0,0.00053424,120]
[325216383,1714593046831,-500.0,0.00053424,120]
[325216384,1714593046840,-500.0,0.00053424,120]
[325216385,1714593046849,-500.0,0.00053424,120]
[325216386,1714593046858,-500.0,0.00053424,120]
[325216387,1714593046868,-500.0,0.00053424,120]
[325216388,1714593046877,-500.0,0.00053424,120]
[325216389,1714593046886,-154.95425391,0.00053424,120]
[325216390,1714593046895,-644.62257287,0.00053424,120]
[325216391,1714593046904,-500.0,0.00053424,120]
[325216392,1714593046913,-1001.57,0.00053424,120]
[325216393,1714593046922,-500.0,0.00053424,120]
[325216394,1714593046932,-500.0,0.00053424,120]
[325216395,1714593046941,-500.0,0.00053424,120]
[325216396,1714593046950,-672.31,0.00053424,120]
[325216397,1714593046960,-500.0,0.00053424,120]
[325216398,1714593046969,-506.22,0.00053424,120]
[325216399,1714593046978,-500.0,0.00053424,120]
[325216400,1714593046987,-500.0,0.00053424,120]
[325216401,1714593046997,-500.0,0.00053424,120]
[325216402,1714593047008,-500.0,0.00053424,120]
[325216403,1714593047017,-500.0,0.00053424,120]
[325216404,1714593047027,-500.0,0.00053424,120]
[325216405,1714593047036,-500.0,0.00053424,120]
[325216406,1714593047046,-500.0,0.00053424,120]
[325216407,1714593047061,-623.31,0.00053424,120]
[325216408,1714593047070,-500.0,0.00053424,120]
[325216409,1714593047081,-500.0,0.00053424,120]
[325216410,1714593047092,-500.0,0.00053424,120]
[325216411,1714593047101,-500.0,0.00053424,120]
[325216412,1714593047111,-500.0,0.00053424,120]
[325216413,1714593047120,-500.0,0.00053424,120]
[325216414,1714593047129,-500.0,0.00053424,120]
[325216415,1714593047138,-500.0,0.00053424,120]
[325216416,1714593047147,-1000.0,0.00053424,120]
[325216417,1714593047157,-500.0,0.00053424,120]
[325216418,1714593047167,-500.0,0.00053424,120]
[325216419,1714593047177,-500.0,0.00053424,120]
[325216420,1714593047186,-2973.1,0.00053424,120]
[325216421,1714593047196,-11101.42,0.00053424,120]
[325216422,1714593047205,-912.14,0.00053424,120]
[325216423,1714593047215,-504.77645063,0.00053424,120]
[325216424,1714593047224,-500.0,0.00053424,120]
[325216425,1714593047233,-500.0,0.00053424,120]
[325216426,1714593047243,-500.0,0.00053424,120]
[325216427,1714593047252,-239.75814575,0.00053424,120]
[325216428,1714593047261,-500.0,0.00053424,120]
[325216429,1714593047270,-1030.03,0.00053424,120]
[325216430,1714593047279,-452.94313312,0.00053424,120]
[325216431,1714593047289,-500.0,0.00053424,120]
[325216432,1714593047298,-500.0,0.00053424,120]
[325216433,1714593047311,-500.0,0.00053424,120]
[325216434,1714593047320,-212.75721461,0.00053424,120]
[325216435,1714593047330,-500.0,0.00053424,120]
[325216436,1714593047339,-500.0,0.00053424,120]
[325216437,1714593047349,-870.89,0.00053424,120]
[325216438,1714593047358,-500.0,0.00053424,120]
[325216439,1714593047367,-500.0,0.00053424,120]
[325216440,1714593047376,-853.15,0.00053424,120]
[325216441,1714593047386,-500.0,0.00053424,120]
[325216442,1714593047396,-500.0,0.00053424,120]
[325216443,1714593047405,-593.6,0.00053424,120]
[325216444,1714593047415,-500.0,0.00053424,120]
[325216445,1714593047424,-500.0,0.00053424,120]
[325216446,1714593047434,-500.0,0.00053424,120]
[325216447,1714593047443,-500.0,0.00053424,120]
[325216448,1714593047452,-500.0,0.00053424,120]
[325216449,1714593047462,-500.0,0.00053424,120]
[325216450,1714593047471,-500.0,0.00053424,120]
[325216451,1714593047480,-500.0,0.00053424,120]
[325216452,1714593047489,-500.0,0.00053424,120]
[325216453,1714593047499,-500.0,0.00053424,120]
[325216454,1714593047509,-664.12,0.00053424,120]
[325216455,1714593047519,-500.0,0.00053424,120]
[325216456,1714593047528,-880.22,0.00053424,120]
[325216457,1714593047537,-511.6,0.00053424,60]
[325216458,1714593047547,-445.77084145,0.00053424,120]
[325216459,1714593047561,-500.0,0.00053424,120]
[325216460,1714593047571,-500.0,0.00053424,120]
[325216461,1714593047580,-500.0,0.00053424,120]
[325216462,1714593047589,-7436.85,0.00053424,120]
[325216463,1714593047599,-500.0,0.00053424,120]
[325216464,1714593047608,-503.42461169,0.00053424,120]
[325216465,1714593047618,-500.0,0.00053424,120]
[325216466,1714593047628,-500.0,0.00053424,120]
[325216467,1714593047637,-817.28,0.00053424,7]
[325216468,1714593047646,-500.0,0.00053424,120]
[325216469,1714593047656,-500.0,0.00053424,120]
[325216470,1714593047666,-500.0,0.00053424,120]
[325216471,1714593047675,-500.0,0.00053424,120]
[325216472,1714593047684,-500.0,0.00053424,120]
[325216473,1714593047736,-1682.03,0.00053424,120]
[325216474,1714593047745,-501.35121444,0.00053424,120]
[325216475,1714593047755,-500.0,0.00053424,120]
[325216476,1714593047763,-500.0,0.00053424,120]
[325216477,1714593047772,-500.0,0.00053424,120]
[325216478,1714593047782,-307.93494572,0.00053424,120]
[325216479,1714593047792,-1477.84,0.00053424,120]
[325216480,1714593047803,-500.0,0.00053424,120]
[325216481,1714593047812,-503.71462416,0.00053424,120]
[325216482,1714593047820,-500.0,0.00053424,120]